Cogmind - Beta 16 @@@ ROGUE MODE // 2025.11.25 @ 21:43:07 Player: Skysub Result: Destroyed by C-17 Slicer with Blade Saw Performance ------------- Evolutions (2) 1000 Regions Visited (3) 600 Robots Destroyed (1) 5 Value Destroyed (5) 5 Prototype IDs (0) 0 Alien Tech Used (0) 0 Bonus (470) 470 TOTAL SCORE: 2080 Bonus ------- Pacifist 470 Cogmind --------- Core Integrity 0/550 Matter 300/300 Energy 99/100 System Corruption 1% Temperature Cool (0) Movement Core (50) Location -8/Materials Parts ------- > --- POWER (1) -------- (None) > --- PROPULSION (4) --- (None) > --- UTILITY (4) ------ (None) > --- WEAPON (2) ------- (None) > --- INVENTORY (5) ---- Ion Engine Peak State ------------ > --- POWER ------------ (None) > --- PROPULSION ------- Flight Unit Flight Unit > --- UTILITY ---------- (None) > --- WEAPON ----------- (None) > --- INVENTORY -------- Ion Engine [Rating: 2] Favorites ----------- Power None Propulsion Flight Unit Flight Unit Flight Unit Utility None Weapon None Build | -11 -10 -9 -8 ------- Run | Yrd Mat Mat Mat Slots Evolved 4 | . . 2 2 Power . | . . . . Propulsion 2 | . . 1 1 Utility 2 | . . 1 1 Weapon . | . . . . Parts Attached 2 | . 1 . 1 Power . | . . . . Engine . | . . . . Core . | . . . . Reactor . | . . . . Propulsion 2 | . 1 . 1 Treads . | . . . . Leg . | . . . . Wheel . | . . . . Hover . | . . . . Flight 2 | . 1 . 1 Utility . | . . . . Device . | . . . . Storage . | . . . . Processor . | . . . . Hackware . | . . . . Protection . | . . . . Artifact . | . . . . Weapon . | . . . . Energy Gun . | . . . . Energy Cannon . | . . . . Ballistic Gun . | . . . . Ballistic Cannon . | . . . . Launcher . | . . . . Special Weapon . | . . . . Impact Weapon . | . . . . Slashing Weapon . | . . . . Piercing Weapon . | . . . . Special Melee Weapon . | . . . . Unidentified Prototypes . | . . . . Parts Lost 2 | . . . 2 Power . | . . . . Propulsion 2 | . . . 2 Utility . | . . . . Weapon . | . . . . Highest Loss Streak 2 | . . . 2 To Critical Strikes . | . . . . Average Backups . | . 1 1 1 Power . | . 1 1 1 Propulsion . | . . . . Utility . | . . . . Weapon . | . . . . Tool/Special . | . . . . Unused Backups 1 | . . . 1 Power 1 | . . . 1 Propulsion . | . . . . Utility . | . . . . Weapon . | . . . . Tool/Special . | . . . . Average Slot Usage (%) 8 | . 10 11 4 Flight 8 | . 10 11 4 Peak Build Rating 2 | . 1 1 2 Average Rating . | . . 1 . On Entrance . | . . 1 1 Avg Prop Armor Cover (%) . | . . . . Naked Turns 52 | . 11 . 41 Heaviest Build . | . . . . Greatest Support 10 | 3 4 5 10 Greatest Overweight (x) . | . . . . Average Overweight (x) . | . . . . Largest Inventory Capacity 5 | 5 5 5 5 Average Capacity 5 | 5 5 5 5 Most Carried 1 | 1 1 1 1 Average Carried . | . 1 1 1 Final Capacity 5 | 5 5 5 5 Final Carried 1 | 1 1 1 1 Class Distribution -------------------- 100% | Mutant Dominant Class ---------------- Mutant | -10/Materials Mutant | -9/Materials Mutant | -8/Materials Resources | -11 -10 -9 -8 ----------- Run | Yrd Mat Mat Mat Matter Collected 179 | 144 . . 35 Remotely . | . . . . Salvage Created 14 | . . . 14 Parts 4 | . . . 4 Haulers Intercepted . | . . . . Recyclers Shooed . | . . . . Parts Field Recycled . | . . . . Retrieved Matter . | . . . . Parts Self-Destructed . | . . . . Prevented . | . . . . Parts Restored . | . . . . Kills | -11 -10 -9 -8 ------- Run | Yrd Mat Mat Mat Combat Hostiles Destroyed . | . . . . Classes Destroyed 1 | . . . 1 Builder 1 | . . . 1 Best Kill Streak 1 | . . . 1 Combat Bots Only . | . . . . Max Kills in Single Turn 1 | . . . 1 Gunslinging . | . . . . Exploded . | . . . . Melee . | . . . . Uniques/NPCs Destroyed . | . . . . Combat | -11 -10 -9 -8 -------- Run | Yrd Mat Mat Mat Hostile Shots Fired 128 | . 6 28 94 Missed 69 | . 4 22 43 Hits 59 | . 2 6 51 Melee 1 | . . . 1 Projectile 58 | . 2 6 50 Damage Taken 672 | . 23 54 595 Core 624 | . 23 45 556 Absorbed by Shields . | . . . . Core Remaining (%) 92 | 100 90 88 . Volleys Fired . | . . . . Largest . | . . . . Hottest . | . . . . Shots Fired . | . . . . Gun . | . . . . Cannon . | . . . . Launcher . | . . . . Special . | . . . . Kinetic . | . . . . Thermal . | . . . . Explosive . | . . . . Electromagnetic . | . . . . Robot Hit Streak . | . . . . Robot Miss Streak . | . . . . Penetration Max . | . . . . Secondary Targets . | . . . . Shots Hit Robots . | . . . . Core Hits 1 | . . . 1 Critical Kills . | . . . . Critical Parts Destroyed . | . . . . Critical Strikes . | . . . . Melee Attacks . | . . . . Impact . | . . . . Slashing . | . . . . Piercing . | . . . . Sneak Attacks . | . . . . Combat Hostiles . | . . . . Follow-up Attacks . | . . . . Damage Inflicted 54 | . . . 54 Guns . | . . . . Cannons . | . . . . Explosions . | . . . . Melee . | . . . . Ramming 54 | . . . 54 Kinetic . | . . . . Thermal . | . . . . Explosive . | . . . . Electromagnetic . | . . . . Impact . | . . . . Slashing . | . . . . Piercing . | . . . . Highest Corruption 1 | . . . 1 Average Corruption 1 | . . . 1 Corruption Purged . | . . . . Corruption Blocked . | . . . . Overload Shots . | . . . . Overflow Damage . | . . . . Projectiles . | . . . . Explosions . | . . . . Melee . | . . . . Knockbacks . | . . . . Impact . | . . . . Kinetic . | . . . . Secondary . | . . . . Self-Inflicted Damage 24 | . . . 24 Shots . | . . . . Rammed 9 | . . . 9 Targets Rammed 9 | . . . 9 Kicked . | . . . . Crushed . | . . . . Highest Temperature . | . . . . Average Temperature . | . . . . Received Heat Transfer 117 | . 12 6 99 Siege Activations . | . . . . Martial Activations . | . . . . Shielding Activations . | . . . . Robots Disrupted . | . . . . Combat Hostiles . | . . . . Robots Corrupted . | . . . . Combat Hostiles . | . . . . Parts Fried . | . . . . Impact Corruptions . | . . . . Robots Melted . | . . . . Combat Hostiles . | . . . . Parts Melted . | . . . . Heat Transferred . | . . . . Parts Sabotaged . | . . . . Parts Stolen . | . . . . Parts Stripped . | . . . . Power Chain Reactions . | . . . . Alert | -11 -10 -9 -8 ------- Run | Yrd Mat Mat Mat Maximum Alert Level . | . . . . Low Security (%) 100 | 100 100 100 100 Level 1 . | . . . . Level 2 . | . . . . Level 3 . | . . . . Level 4 . | . . . . Level 5 . | . . . . High Security . | . . . . Max Security . | . . . . Peak Influence 53 | . 20 53 45 Initial 22 | . . 8 22 Average 7 | . 5 8 10 Influence Increases 152 | . 44 53 55 Destroy 0b10 Robot/NC 5 | . . . 5 Successful Hack 27 | . 14 8 5 Lose Combat Pursuer 120 | . 30 45 45 Influence Decreases 107 | . 24 20 63 Entered New Map 43 | . . 12 31 Time Decay 47 | . 24 8 15 Lost Part 17 | . . . 17 Squads Dispatched 8 | . 1 4 3 Investigation 5 | . . 3 2 Extermination . | . . . . Reinforcement 3 | . 1 1 1 Assault . | . . . . Garrison . | . . . . Intercept . | . . . . Searches Triggered . | . . . . Construction Impeded . | . . . . Haulers Reinforced . | . . . . Active Scanning Responses . | . . . . Cargo Convoy Interrupts . | . . . . Stealth | -11 -10 -9 -8 --------- Run | Yrd Mat Mat Mat Distress Signals 2 | . 1 1 . Communications Jammed . | . . . . Distress Signals . | . . . . Times Spotted 43 | . 5 16 22 Peak Tracking Total 19 | . 4 14 19 Tactical Retreats 3 | . 1 1 1 Traps | -11 -10 -9 -8 ------- Run | Yrd Mat Mat Mat Traps Triggered . | . . . . Indirectly . | . . . . Trap Hack Attempts . | . . . . Triggered . | . . . . Disarmed . | . . . . Reprogrammed . | . . . . Reused . | . . . . Traps Extracted . | . . . . Installed . | . . . . Triggered . | . . . . Machines | -11 -10 -9 -8 ---------- Run | Yrd Mat Mat Mat Machines Disabled . | . . . . Max in Single Turn . | . . . . Machines Repaired . | . . . . Machines Dismantled . | . . . . Machines Sabotaged . | . . . . Overloaded Fab Kills . | . . . . Hacking | -11 -10 -9 -8 --------- Run | Yrd Mat Mat Mat Machines Accessed 10 | . 2 5 3 Terminals 9 | . 2 4 3 Fabricators . | . . . . Repair Stations . | . . . . Recycling Units . | . . . . Scanalyzers 1 | . . 1 . Garrison Access . | . . . . Total Hacks 26 | . 4 14 8 Successful 8 | . 1 4 3 Failed 18 | . 3 10 5 Catastrophic 4 | . . 2 2 Database Lockouts . | . . . . Manual 23 | . 4 11 8 Terminals 23 | . 4 11 8 Fabricators . | . . . . Repair Stations . | . . . . Recycling Units . | . . . . Scanalyzers 3 | . . 3 . Garrison Access . | . . . . Terminal Hacks 2 | . . 1 1 Level Access Points 2 | . . 1 1 Fabricator Hacks . | . . . . Repair Station Hacks . | . . . . Recycling Unit Hacks . | . . . . Scanalyzer 2 | . . 2 . Retrieve Study 2 | . . 2 . Garrison Access Hacks . | . . . . Unauthorized Hacks 4 | . 1 1 2 Terminals 4 | . 1 1 2 Botnet 4 | . 1 1 2 Fabricators . | . . . . Repair Stations . | . . . . Recycling Units . | . . . . Scanalyzers . | . . . . Garrison Access . | . . . . Data Cores Recovered . | . . . . Used . | . . . . Hacking Detections 8 | . 2 4 2 Full Trace Events 7 | . 1 4 2 Feedback Events . | . . . . Feedback Blocked . | . . . . Robot Schematics Acquired . | . . . . Robots Built . | . . . . Authchips . | . . . . Time . | . . . . Total Robot Build Rating . | . . . . Part Schematics Acquired . | . . . . Parts Built . | . . . . Authchips . | . . . . Time . | . . . . Total Part Build Rating . | . . . . Part Studies Acquired 2 | . . 2 . Parts Repaired . | . . . . Time . | . . . . Parts Recycled . | . . . . Recycled Matter . | . . . . Retrieved Matter . | . . . . Retrieved Components . | . . . . Parts Scanalyzed . | . . . . Part Schematics Acquired . | . . . . Parts Damaged . | . . . . Bothacking | -11 -10 -9 -8 ------------ Run | Yrd Mat Mat Mat Used RIF Installer . | . . . . Robots Hacked . | . . . . Non-combat . | . . . . Combat . | . . . . Robot Hacks Applied . | . . . . Relay Couplers Released . | . . . . Fabnet Peak Effective % . | . . . . Robots Rewired . | . . . . Allies Hacked . | . . . . Hacks Repelled . | . . . . Allies | -11 -10 -9 -8 -------- Run | Yrd Mat Mat Mat Total Allies . | . . . . Largest Group . | . . . . Highest-Rated Group . | . . . . Highest-Rated Ally . | . . . . Total Orders . | . . . . Ally Attacks . | . . . . Total Damage . | . . . . Kills . | . . . . Allies Corrupted . | . . . . Allies Melted . | . . . . Intel | -11 -10 -9 -8 ------- Run | Yrd Mat Mat Mat Active Infowar (turns) . | . . . . Robot Analysis Total . | . . . . Derelict Logs Recovered . | . . . . Drone Launches . | . . . . Drone Recoveries . | . . . . Exploration | -11 -10 -9 -8 ------------- Run | Yrd Mat Mat Mat Turns Passed 207 | 14 72 51 70 Spaces Moved 457 | 27 170 127 133 Core 111 | 27 20 . 64 Treads . | . . . . Legs . | . . . . Wheels . | . . . . Hover . | . . . . Flight 346 | . 150 127 69 Fastest Speed 37 | 50 40 40 37 Average Speed 42 | 50 41 40 44 Slowest Speed 50 | 50 50 40 50 Overloaded Moves . | . . . . Propulsion Burnouts . | . . . . Robots Hopped 13 | . 4 3 6 Potential Cave-ins . | . . . . Cave-ins Triggered . | . . . . Exploration Rate (%) 20 | 3 36 22 20 Regions Visited 3 Branch Regions . Pre-discovered Areas . | . . . . Known Exits Taken 1 | . . 1 . Unknown Exits Taken 2 | 1 1 . . Scrap Searched . | . . . . Spaces Dug . | . . . . Terrain Destroyed . | . . . . Melee . | . . . . Projectile . | . . . . AOE . | . . . . Terrain Rammed . | . . . . Walls Destroyed . | . . . . Machines Disabled . | . . . . Actions | -11 -10 -9 -8 --------- Run | Yrd Mat Mat Mat Total 453 | 27 166 123 137 Wait . | . . . . Move 431 | 26 161 121 123 Hop 10 | . 4 2 4 Pick Up 1 | 1 . . . Fast Attach 2 | . 1 . 1 Attach . | . . . . Detach . | . . . . Swap . | . . . . Drop . | . . . . Fire . | . . . . Melee . | . . . . Ram 9 | . . . 9 Kick . | . . . . Crush . | . . . . Escape Stasis . | . . . . Rewire . | . . . . Trap . | . . . . Miscellaneous . | . . . . Route ------- -11/Scrapyard -10/Materials (discovered 2 exits: *Mat / [*Min]) -9/Materials (discovered 4 exits: *Mat x3 / [*Min]) -8/Materials (discovered 3 exits: *Fac x3) History --------- Turn | Location | Event 6 | -11/Scrapyard | Discovered new exit (range 15) 15 | -11/Scrapyard | Entered Materials 64 | -10/Materials | Discovered new exit (range 12) 82 | -10/Materials | Discovered new exit (range 13) 87 | -10/Materials | Entered another Materials area 87 | -9/Materials | Evolved 2 slots: Propulsion x1, Utility x1 116 | -9/Materials | Discovered new exit (range 12) 130 | -9/Materials | Identified exit to Materials 138 | -9/Materials | Entered another Materials area 138 | -8/Materials | Evolved 2 slots: Propulsion x1, Utility x1 145 | -8/Materials | Identified exit to Factory 186 | -8/Materials | Core integrity fell below 50% 201 | -8/Materials | Core integrity fell below 20% 208 | -8/Materials | Destroyed by C-17 Slicer with Blade Saw Last Messages --------------- 00174_ Slammed into U-05 Engineer. 00174_ U-05 Engineer destroyed. 00175_ Acquired 14 matter. 00175_ U-05 Engineer builds a Door. 00180_ Slammed into G-47 Trooper. 00190_ K-01 Serf collects debris. 00190_ C-30 ARC bursts open, deploying its payload. 00190_ S-10 Pest unfolds itself. 00193_ S-10 Pest destroyed. 00194_ K-01 Serf collects debris. 00196_ Slammed into S-10 Pest. 00196_ Destabilizing: System corrupted (+1). 00197_ Slammed into S-10 Pest. 00198_ Acquired 21 matter. 00198_ S-10 Pest destroyed. 00199_ K-01 Serf collects debris. 00202_ ALERT: Suspicious intruders detected, dispatching Cutter reinforcements to area. 00207_ K-01 Serf collects debris. 00207_ Knocked back. Map ----- +----------------------------------------------------+ | ????????????????????????????????????# % ## ## | | ????????????????????????????????????# [ ## == ## | | ????????????????????????????????????# ## == ## | | ????????????????????????????????????# ## ## | | ????????????????????????????????????# ## ## | | ????????????????????????????????????# ## ## | | ????????????????????????????????????# ## ## | | ????????????????????????????????????# ## "" ## | | ????????????????????????????????????# ## G" ## | | ????????????????????????????????????# ## "" ## | | ????????????????????????????????????# ## ?? ?# | | ????????????????????????????????????#"% #?#????#?# | | ????????????????????????????????????#%" #???????## | | ????????????????????????????????????#" #???????# | | ????????????????????????????????????# ######### | | ????????????????????????????????????# # # | | ????????????????????????????????????# # # | | ????????????????????????????????????# # """ # | | ???????????? ####################### #""""" # | | ???????????? ! #""""" # | | ??????????? #""""" + | | ??????????? *** * a # """ # | | ??????????+ *r* r # # | | ??????????# ** !! # + | | ??????????# !! ############### # | | ??????????# ^ % @#?????????????# ## | | ??????????# c#?????????????##### #### | | ??????????# c ?????????????????###? | | ??????????? ???????????????????# | | ??????????? ??????????????????# | | ????????????"T"######+### k ??????????????????# | | ????????????????????????# #?????????????????# | | ????????????????????????# H #?????????????????#### | | ????????????????????????# #????????????????????? | | ?????????????????????????####????????????????????? | | ?????????????????????????????????????????????????? | | ?????????????????????????????????????????????????? | | ?????????????????????????????????????????????????? | | ?????????????????????????????????????????????????? | | ?????????????????????????????????????????????????? | | ?????????????????????????????????????????????????? | | ?????????????????????????????????????????????????? | | | | | | | | | | | | | | | | | +----------------------------------------------------+ Best States ------------- Heat Dissipation 31 Energy Generation 5 Energy Capacity 100 Matter Stores 300 Matter Capacity 300 Sight Range 16 Terrain Scan Density 10 Evasion (%) 62 Item Schematics ----------------- None Robot Schematics ------------------ None Fabricated ------------ Nothing Repaired ---------- Nothing Studied --------- Flight Unit | -9/Materials | Hacked Ion Engine | -9/Materials | Hacked Alien Tech Used ----------------- None Achievements -------------- None Challenges ------------ None Game ------ Seed DerelictCloakTerminator Manual? 0 Play Time 00:05:28 Cumulative 285.6 hours Start 2025.11.25 @ 21:39:12 End 2025.11.25 @ 21:43:07 Sessions 1 Manual Loads 0 Difficulty Rogue Special Mode None Game No. 311 Rogue 311 Adventurer 0 Explorer 0 Win Type - Total 14 Types 7/0/3/1/1/0/0/1/0/1 Lore% 77 Gallery% 75 Achievement% 57 Wizard Run 0 Options --------- Layout 1 ASCII 0 Keyboard 1 Movement Numpad Keybinds 0 Fullscreen 0 Font 32/SmallcapsGlow Map View 77x35 Zoom Use 0% Tactical HUD 1 Map Filters NONE Filters NONE Steam 1 RUN: a7c33259-fc40-45a0-9d7f-541d22052864